bitfinex/quotes_ETHUSD_20251107
["timestamp","ask_amount","ask_price","bid_price","bid_amount"]
[1762498042884,0.29350001,3359.5,3359.2,3.42081926]
[1762498043087,0.29350001,3359.5,3359.4,2.97772203]
[1762498043288,0.74650001,3359.5,3359.4,2.97772203]
[1762498045091,1e-08,3359.5,3359.4,2.97772203]
[1762498045290,1e-08,3359.5,3359.4,4.10946616]
[1762498045787,0.29180001,3359.5,3359.4,0.67524413]
[1762498045962,0.74640001,3359.5,3359.4,2.97772203]
[1762498046597,6.26746188,3359.5,3359.4,0.001]
[1762498048659,6.67296588,3359.5,3359.4,0.001]
[1762498049593,9.6495993,3359.5,3359.4,0.001]
[1762498051197,10.09948937,3359.5,3359.4,0.001]
[1762498056912,4.64220388,3359.1,3359.0,0.001]
[1762498057112,14.05089369,3359.1,3359.0,0.001]
[1762498057287,14.50719369,3359.1,3359.0,0.001]
[1762498064214,14.97427982,3359.1,3359.0,0.001]
[1762498064416,14.50719369,3359.1,3359.0,0.001]
[1762498066823,3.43302372,3358.5,3358.3,0.001]
[1762498066999,1.665216,3357.5,3356.8,0.6496]
[1762498067199,4.26134987,3356.9,3356.8,3.62862764]
[1762498067399,4.26134987,3356.9,3356.8,3.17822764]
[1762498067612,0.405504,3357.1,3356.8,3.63432764]
[1762498067815,0.405504,3357.1,3356.8,3.63424651]
[1762498068021,0.405504,3357.1,3357.0,0.4561]
[1762498069924,0.405504,3357.1,3357.0,0.9065]
[1762498070427,0.405504,3357.1,3357.0,0.4561]
[1762498070922,0.405504,3357.1,3357.0,3.88535016]
[1762498071122,0.405504,3357.1,3357.0,0.9065]
[1762498071493,0.405504,3357.1,3357.0,0.4561]
[1762498071913,0.405504,3357.1,3356.1,2.97961279]
[1762498071914,8.09857278,3357.1,3356.4,2.9793704]
[1762498072122,4.26134987,3356.6,3356.4,2.97931711]
[1762498072420,4.26134987,3356.6,3356.3,3.62044899]
[1762498072621,4.66685387,3356.6,3356.5,0.4561]
[1762498073122,4.66685387,3356.6,3356.2,2.97949993]
[1762498073327,3.14204716,3356.9,3356.0,3.6241734]
[1762498073328,4.26134987,3356.3,3356.0,3.6241734]
[1762498073526,4.26134987,3356.3,3356.0,3.62420607]
[1762498073827,4.66685387,3356.3,3356.2,0.4561]
[1762498074012,4.66685387,3356.3,3356.0,3.62422343]
[1762498074217,4.66685387,3356.3,3355.7,3.62095035]
[1762498074421,4.16454755,3356.2,3355.8,2.97991287]
[1762498074595,4.16454755,3355.9,3355.2,0.641]
[1762498075106,4.16454755,3355.9,3355.8,3.43601537]
[1762498075302,4.16454755,3355.9,3355.8,0.4561]
[1762498075494,4.57005155,3356.2,3355.8,3.88641524]
[1762498075895,4.57005155,3356.2,3355.8,0.9065]
[1762498076124,4.57005155,3356.2,3355.8,3.88639451]
[1762498076422,4.57005155,3356.2,3355.8,3.43595033]
[1762498076621,4.57005155,3356.2,3355.9,0.001]
[1762498077321,0.405504,3356.0,3355.9,0.001]
[1762498077722,0.405504,3356.0,3355.9,0.4571]
[1762498077925,0.405504,3356.0,3355.9,0.001]
[1762498078124,0.405504,3356.0,3355.9,0.4571]
[1762498078326,1.665216,3356.0,3355.9,0.4571]
[1762498079202,1.665216,3356.0,3355.9,3.88732657]
[1762498080140,1.259712,3356.0,3355.9,3.88732657]
[1762498080313,1.259712,3356.0,3355.9,0.4571]
[1762498080509,1.259712,3356.0,3355.9,3.43692657]
[1762498080712,1.259712,3356.0,3355.9,3.88732657]
[1762498081412,1.259712,3356.0,3355.9,0.9075]
[1762498081735,1.665216,3356.5,3356.0,2.97967918]
[1762498081938,1.665216,3356.5,3356.0,0.9065]
[1762498082240,1.259712,3356.5,3356.4,0.4561]
[1762498082440,1.665216,3356.5,3356.4,0.4561]
[1762498082598,1.665216,3356.5,3356.1,3.62064694]
[1762498082797,1.259712,3356.5,3356.4,3.43548267]
[1762498083027,4.16454755,3356.9,3356.5,2.97928562]
[1762498083231,4.16454755,3356.9,3356.5,3.42968562]
[1762498083431,0.405504,3356.8,3356.6,3.42959515]
[1762498083634,0.405504,3356.8,3356.1,0.1906]
[1762498083635,4.36414755,3357.3,3356.8,2.97902764]
[1762498083945,4.16454755,3357.0,3356.2,3.42994393]
[1762498084106,4.16454755,3357.0,3356.3,2.97940755]
[1762498084107,0.2199,3356.8,3356.3,2.97940755]
[1762498084443,4.57005155,3356.7,3356.3,2.97940755]
[1762498084747,4.57005155,3356.7,3356.4,2.97937417]
[1762498084947,1.665216,3356.9,3356.6,0.4561]
[1762498085745,4.38694755,3356.7,3355.9,0.001]
[1762498085902,4.38694755,3356.7,3355.9,0.4514]
[1762498085903,0.410104,3356.5,3355.9,0.4514]
[1762498086108,0.405504,3356.5,3355.9,3.43120596]
[1762498086411,0.405504,3356.5,3356.0,2.97972765]
[1762498086741,0.405504,3356.5,3356.0,3.43012765]
[1762498087940,0.405504,3356.5,3356.0,0.4504]
[1762498088257,7.14322368,3357.2,3356.1,3.6205721]
[1762498088541,4.23848166,3357.1,3356.5,0.4561]
[1762498089455,1.72701114,3357.4,3356.6,2.97915728]
[1762498089653,0.1488,3356.8,3356.6,3.42955728]
[1762498090016,0.1488,3356.8,3356.7,0.9065]
[1762498091562,0.1488,3356.8,3355.4,0.1906]
[1762498091563,0.405504,3356.2,3355.4,0.1906]
[1762498091863,3.60764178,3356.0,3355.4,0.1906]
[1762498092626,3.60764178,3356.0,3355.4,3.17085378]
[1762498092831,0.627904,3356.0,3355.4,3.17085378]
[1762498093132,0.405504,3356.4,3355.9,0.9689]
[1762498093465,0.405504,3356.2,3356.0,0.4757]
[1762498093664,0.405504,3356.4,3356.0,0.4757]
[1762498093864,0.405504,3356.4,3356.0,0.4767]
[1762498094754,3.38489142,3356.4,3356.0,0.4767]
[1762498095059,0.405504,3356.4,3356.0,0.4767]
[1762498095264,1.455012,3356.1,3356.0,0.001]
[1762498095562,4.84016499,3356.1,3356.0,0.001]
[1762498095863,5.33066499,3356.1,3356.0,0.001]
[1762498101745,0.600804,3356.1,3356.0,0.001]
[1762498101951,0.405504,3356.1,3356.0,0.001]
[1762498102402,0.603704,3356.1,3356.0,0.001]
[1762498102680,0.405504,3356.1,3356.0,0.4767]
[1762498103178,0.405504,3356.1,3356.0,0.001]
[1762498103383,0.606604,3356.1,3356.0,0.001]
[1762498103568,4.84596499,3356.1,3356.0,0.001]
[1762498103979,1.866316,3356.1,3356.0,0.001]
[1762498104168,4.84596499,3356.1,3356.0,0.001]
[1762498104565,4.84596499,3356.1,3356.0,0.4767]
[1762498104566,1.665216,3356.1,3356.0,0.4767]
[1762498105786,4.84596499,3356.1,3356.0,0.001]
[1762498106805,1.665216,3356.1,3356.0,0.4767]
[1762498109489,1.665216,3356.1,3356.0,0.9689]
[1762498110395,1.665216,3356.1,3356.0,0.4767]
[1762498112890,1.665216,3356.1,3356.0,0.9689]
[1762498113706,1.665216,3356.1,3356.0,0.4767]
[1762498114875,4.64486499,3356.1,3356.0,0.4767]
[1762498115099,4.84306499,3356.1,3356.0,0.001]
[1762498115412,1.863416,3356.1,3356.0,0.001]
[1762498116280,1.665216,3356.1,3356.0,0.9689]
[1762498117439,1.665216,3356.1,3356.0,0.4767]
[1762498118027,4.64486499,3356.1,3356.0,0.001]
[1762498118795,4.84016499,3356.1,3356.0,0.001]
[1762498119217,9.00428964,3356.1,3356.0,0.001]
[1762498119416,9.47088964,3356.1,3356.0,0.001]
[1762498120935,9.94209835,3356.1,3356.0,0.001]
[1762498121137,9.47088964,3356.1,3356.0,0.001]
[1762498121292,9.00428964,3356.1,3356.0,0.001]
[1762498121493,9.92619835,3356.1,3356.0,0.001]
[1762498124894,9.83695521,3356.1,3356.0,0.001]
[1762498130099,9.38625521,3356.1,3356.0,0.001]
[1762498130403,9.83695521,3356.1,3356.0,0.001]
[1762498133506,6.40660622,3356.1,3356.0,0.001]
[1762498133716,8.7197465,3356.1,3356.0,0.4752]
[1762498134134,8.7197465,3356.1,3356.0,0.9748]
[1762498134410,8.7197465,3356.1,3356.0,0.4752]
[1762498134411,1.57597286,3356.1,3356.0,0.4752]
[1762498134610,1.57597286,3356.1,3356.0,0.9748]
[1762498136253,1.57597286,3356.1,3356.0,0.4752]
[1762498136548,5.84716116,3356.1,3356.0,0.4752]
[1762498138113,8.82681015,3356.1,3356.0,0.4752]
[1762498138711,5.5309003,3356.1,3356.0,0.4752]
[1762498139221,8.51054929,3356.1,3356.0,0.4752]
[1762498141528,5.5309003,3356.1,3356.0,0.4752]
[1762498141731,8.51054929,3356.1,3356.0,0.4752]
[1762498142342,0.1488,3356.1,3356.0,3.95453778]
[1762498142649,0.1488,3356.1,3356.0,4.64807443]
[1762498143524,0.1508,3356.1,3356.0,1.66833665]
[1762498144370,0.1508,3356.1,3356.0,4.64807443]
[1762498144965,0.1508,3356.1,3356.0,1.66833665]
[1762498145657,0.1508,3356.1,3356.0,4.64807443]
[1762498145960,0.002,3356.1,3356.0,4.64807443]
[1762498148527,0.002,3356.1,3356.0,3.67427443]
[1762498148727,0.2396,3356.1,3356.0,0.001]
[1762498148974,0.71080871,3356.1,3356.0,0.001]
[1762498149272,0.002,3356.1,3356.0,0.9748]
[1762498149468,0.002,3356.1,3356.0,3.95453778]
[1762498149667,0.002,3356.1,3356.0,4.64808106]
[1762498150970,0.002,3356.1,3356.0,4.79688106]
[1762498152452,0.002,3356.5,3356.4,2.97938267]
[1762498152666,0.002,3356.5,3356.4,3.43428267]
[1762498152843,0.002,3356.5,3356.4,3.93258267]
[1762498153033,0.002,3356.5,3356.4,4.64335856]
[1762498157946,0.002,3356.5,3356.4,1.66397589]
[1762498158153,0.002,3356.5,3356.4,4.64335856]
[1762498159998,0.002,3356.5,3356.0,0.001]
[1762498159999,0.2108,3356.5,3356.0,0.001]
[1762498160201,0.1536,3356.4,3356.0,2.98072713]
[1762498160497,0.1536,3356.4,3356.0,3.47902713]
[1762498161264,0.6334,3356.4,3356.0,2.98072713]
[1762498161491,0.6334,3356.4,3356.0,0.001]
[1762498161688,0.6334,3356.4,3356.0,2.98070859]
[1762498161885,0.1536,3356.4,3356.1,2.97964395]
[1762498163904,0.1536,3356.4,3356.0,3.47902279]
[1762498164073,0.6334,3356.4,3356.0,0.001]
[1762498164570,0.6334,3356.4,3356.0,2.98072788]
[1762498164771,4.2711883,3356.3,3356.0,0.001]
[1762498165080,0.3529,3356.1,3356.0,0.001]
[1762498165680,0.8327,3356.1,3356.0,0.001]
[1762498167994,5.07206099,3356.1,3356.0,0.001]
[1762498168500,1.945612,3356.1,3356.0,0.001]
[1762498171224,1.468512,3356.1,3356.0,0.001]
[1762498171609,1.259712,3356.1,3356.0,0.4559]
[1762498171788,1.259712,3356.1,3356.0,0.9542]
[1762498171988,1.259712,3356.1,3356.0,0.4559]
[1762498172194,1.468512,3356.1,3356.0,0.001]
[1762498172915,1.945612,3356.1,3356.0,0.001]
[1762498173081,1.468512,3356.1,3356.0,0.001]
[1762498174211,1.945612,3356.1,3356.0,0.001]
[1762498175017,4.92526099,3356.1,3356.0,0.001]
[1762498175683,1.945612,3356.1,3356.0,0.001]
[1762498179705,1.947612,3356.1,3356.0,0.001]
[1762498181012,1.470512,3356.1,3356.0,0.001]
[1762498182829,1.261712,3356.1,3356.0,0.4543]
[1762498183029,1.261712,3356.1,3356.0,0.9184]
[1762498183886,1.261712,3356.1,3356.0,0.4543]
[1762498184087,1.261712,3356.1,3356.0,0.9184]
[1762498184534,1.261712,3356.1,3356.0,3.89813778]
[1762498184689,1.261712,3356.1,3356.0,0.4543]
[1762498184889,1.261712,3356.1,3356.0,3.89813778]
[1762498185114,1.261712,3356.1,3356.0,4.20691728]
[1762498185420,0.002,3356.1,3356.0,4.20691728]
[1762498187022,0.002,3356.1,3356.0,4.35571728]
[1762498187924,0.002,3356.1,3356.0,4.23671465]
[1762498188122,0.002,3356.1,3356.0,4.20691728]
[1762498193835,0.002,3356.1,3356.0,12.29790295]
[1762498194136,0.002,3356.1,3356.0,12.26810558]
[1762498194332,0.002,3356.1,3356.0,7.99691728]
[1762498198052,0.002,3356.1,3356.0,8.14571728]
[1762498203839,0.002,3356.1,3356.0,8.26508587]
[1762498205337,0.002,3356.1,3356.0,8.14571728]
[1762498207433,0.002,3356.1,3356.0,7.68161728]
[1762498207872,0.002,3356.1,3356.0,8.14571728]
[1762498211756,0.002,3356.1,3356.0,7.68161728]
[1762498211911,0.2318,3356.1,3356.0,6.91953778]
[1762498213123,0.002,3356.1,3356.0,6.91953778]
[1762498213342,0.002,3356.1,3356.0,7.37973778]
[1762498213534,0.2341,3356.1,3356.0,6.77073778]
[1762498213845,0.002,3356.1,3356.0,2.98073778]
[1762498214046,0.002,3356.1,3356.0,3.44093778]
[1762498215046,0.2318,3356.1,3356.0,2.98073778]
[1762498215351,0.002,3356.1,3356.0,3.92873778]
[1762498215647,0.002,3356.1,3356.0,3.44093778]
[1762498216552,0.002,3356.1,3356.0,2.98073778]
[1762498216851,0.2318,3356.1,3356.0,2.98073778]
[1762498217954,0.688,3356.1,3356.0,2.98073778]
[1762498218124,0.2318,3356.1,3356.0,2.98073778]
[1762498218318,0.688,3356.1,3356.0,2.98073778]
[1762498219053,0.688,3356.1,3356.0,0.001]
[1762498219054,6.10921832,3356.1,3356.0,0.001]
[1762498219232,9.52986769,3356.1,3356.0,0.001]
[1762498219621,6.5502187,3356.1,3356.0,0.001]
[1762498220040,6.10921832,3356.1,3356.0,0.001]
[1762498220433,6.5502187,3356.1,3356.0,0.001]
[1762498221123,6.10921832,3356.1,3356.0,0.001]
[1762498221326,9.52986769,3356.1,3356.0,0.001]
[1762498221654,9.08886731,3356.1,3356.0,0.001]
[1762498222356,9.52986769,3356.1,3356.0,0.001]
[1762498222543,6.5502187,3356.1,3356.0,0.001]
[1762498222771,9.52986769,3356.1,3356.0,0.001]
[1762498225088,6.5502187,3356.1,3356.0,0.001]
[1762498225265,2.79421638,3356.1,3356.0,0.001]
[1762498225446,2.353216,3356.1,3356.0,0.001]
[1762498227858,5.82872232,3356.1,3355.6,0.001]
[1762498228072,9.13422649,3355.7,3355.6,0.001]
[1762498228383,9.59272649,3355.7,3355.6,0.001]
[1762498228571,0.405504,3355.2,3354.7,2.98082459]
[1762498229060,0.3437,3354.8,3354.7,2.98082459]
[1762498230478,0.1488,3354.8,3354.7,2.98082459]
[1762498231072,0.5668,3354.8,3354.7,2.98082459]
[1762498231383,0.8765,3354.8,3354.0,0.4878]
[1762498231584,0.0172,3354.6,3354.5,2.98101696]
[1762498231792,0.4585,3354.8,3354.5,2.98101696]
[1762498232083,0.4585,3354.8,3354.6,2.98095878]
[1762498232473,0.431,3354.7,3354.6,2.98095878]
[1762498232886,0.431,3354.7,3354.6,2.98195878]
[1762498233083,1.050404,3354.9,3354.7,2.98082158]
[1762498233283,0.1864,3354.9,3354.7,2.98082158]
[1762498233485,0.431,3354.8,3354.7,2.98082158]
[1762498234007,1.35438742,3355.1,3354.7,2.98082158]
[1762498234184,0.4585,3355.1,3354.9,2.98070022]
[1762498234583,0.431,3355.0,3354.9,2.98070022]
[1762498235294,0.431,3355.0,3354.8,2.98076696]
[1762498235856,0.0046,3354.9,3354.8,2.98076696]
[1762498236694,0.4631,3354.9,3354.6,2.98196224]
[1762498236991,0.4264,3354.7,3354.6,2.98196224]
[1762498237999,0.4585,3354.9,3354.7,2.98080938]
[1762498238369,0.431,3354.8,3354.7,2.98080938]
[1762498239809,0.4583,3355.1,3354.8,2.98074886]
[1762498240171,0.4313,3354.9,3354.8,2.98074886]
[1762498240673,0.4313,3354.9,3354.7,2.98085796]
[1762498241074,0.4313,3354.8,3354.7,2.98085796]
[1762498241405,0.5801,3354.8,3354.7,2.98085796]
[1762498244374,1.0381,3354.8,3354.7,2.98085796]
[1762498245004,0.5801,3354.8,3354.7,2.98085796]
[1762498246522,1.0381,3354.8,3354.6,2.98193913]
[1762498246731,0.6068,3354.8,3354.7,2.98089247]
[1762498247096,1.0383,3354.8,3354.7,2.98089247]
[1762498248130,0.5803,3354.8,3354.7,2.98089247]
[1762498248314,0.1488,3354.8,3354.7,3.46399247]
[1762498248627,0.1488,3354.8,3354.7,2.98089247]
[1762498252732,0.5806,3354.8,3354.7,2.98089247]
[1762498253555,1.0381,3354.8,3354.7,2.98089247]
[1762498254251,0.5806,3354.8,3354.7,2.98089247]
[1762498256135,1.0381,3354.8,3354.6,2.98195867]
[1762498256355,0.8897,3354.7,3354.6,2.98195867]
[1762498257620,0.4165,3354.7,3354.6,2.98195867]
[1762498258448,0.8891,3354.7,3354.6,2.98195867]
[1762498258829,0.4165,3354.7,3354.6,2.98195867]
[1762498260861,0.8891,3354.7,3354.6,0.001]
[1762498261066,1.767204,3354.7,3354.6,0.001]
[1762498261231,1.259712,3355.0,3354.6,0.4841]
[1762498261438,1.732912,3355.0,3354.7,2.98089102]
[1762498261655,0.11945665,3354.9,3354.7,2.98089102]
[1762498261855,0.4165,3354.8,3354.7,2.98089102]
[1762498262268,0.1488,3354.7,3354.6,2.98195617]
[1762498263241,0.5653,3354.7,3354.6,0.001]
[1762498264462,0.5653,3354.7,3354.6,2.98198133]
[1762498265260,0.1488,3354.7,3354.6,3.46508133]
[1762498265845,0.1488,3354.7,3354.6,0.4841]
[1762498266039,0.1488,3354.7,3354.6,3.46508133]
[1762498266769,0.1488,3354.7,3354.6,0.4841]
[1762498267061,0.5658,3354.7,3354.6,0.001]
[1762498267267,0.5658,3354.7,3354.6,2.98198133]
[1762498267969,0.1488,3354.7,3354.6,2.98198133]
[1762498268151,0.1488,3354.7,3354.6,3.46508133]
[1762498270471,0.1488,3354.7,3354.6,3.94348133]
[1762498270670,0.1488,3354.7,3354.6,3.46508133]
[1762498270874,0.1488,3354.7,3354.6,2.98198133]
[1762498271079,0.555,3354.7,3354.6,0.001]
[1762498271750,1.0378,3354.7,3354.6,0.001]
[1762498271958,6.12490885,3354.7,3354.6,0.001]
[1762498272487,6.12490885,3354.7,3354.2,0.001]
[1762498272488,0.405504,3354.3,3354.2,0.001]
[1762498272694,9.3216003,3354.3,3354.2,0.001]
[1762498272876,6.82385235,3354.3,3354.2,0.001]
[1762498273184,1.29750954,3354.3,3354.2,0.001]
[1762498273867,1.259712,3354.5,3354.2,3.46683683]
[1762498274401,0.896056,3354.4,3354.2,3.46683683]
[1762498274603,0.896056,3354.4,3354.3,2.98124795]
[1762498274756,0.405504,3354.7,3354.4,2.98113745]
[1762498274952,1.30149845,3354.7,3354.4,2.98113745]
[1762498275387,0.89599445,3354.7,3354.6,0.4845]
[1762498275587,0.4062,3354.7,3354.2,0.001]
[1762498275895,4.27373635,3354.9,3354.1,0.1438]
[1762498275896,0.89593023,3354.9,3354.6,3.46540201]
[1762498276208,5.53344835,3355.1,3354.7,3.46536895]
[1762498276497,1.30142085,3355.0,3354.7,0.4845]
[1762498276895,1.30142085,3355.0,3354.6,2.98094845]
[1762498277349,1.78492085,3355.0,3354.6,2.98094845]
[1762498277781,0.4835,3354.9,3354.6,2.98098133]
[1762498278083,1.30142085,3355.0,3354.6,2.98092081]
[1762498278289,0.4742,3354.7,3354.6,2.98092081]
[1762498278476,0.4742,3354.7,3354.5,2.98104379]
[1762498278665,0.4835,3354.9,3354.6,3.46548133]
[1762498278868,1.30142085,3355.0,3354.6,3.46548133]
[1762498279251,0.89591685,3355.0,3354.7,2.98087874]
[1762498279886,1.259712,3355.1,3354.7,2.98087874]
[1762498280186,1.37939813,3355.1,3354.7,2.98087874]
[1762498280390,0.89589813,3355.1,3354.8,2.98080248]
[1762498280564,0.89589813,3355.1,3354.7,3.45967443]
[1762498280770,0.89589813,3355.1,3354.8,2.98077706]
[1762498280965,1.37939813,3355.1,3354.6,2.98094259]
[1762498281166,0.89589813,3355.1,3354.1,0.1978]
[1762498281371,0.89589813,3355.1,3354.7,0.4788]
[1762498281569,0.89589813,3355.1,3354.7,2.98083202]
[1762498281792,1.37939813,3355.1,3354.5,3.45979629]
[1762498281969,0.89589813,3355.1,3354.8,2.98077503]
[1762498282165,1.259712,3355.2,3354.8,2.98074865]
[1762498282364,2.63907267,3355.2,3354.8,2.98074865]
[1762498282689,1.743212,3355.2,3354.9,2.98070092]
[1762498283397,0.1488,3354.9,3354.8,2.9807657]
[1762498283572,0.1488,3354.9,3354.7,2.98086682]
[1762498284393,0.1488,3354.9,3354.7,2.98089247]
[1762498284601,0.1488,3354.9,3354.8,2.98080362]
[1762498284997,0.1488,3354.9,3354.4,0.4788]
[1762498285202,0.1488,3354.9,3354.6,2.98096613]
[1762498285368,0.1488,3354.9,3354.7,2.98086085]
[1762498285698,0.1488,3354.9,3354.8,0.4845]
[1762498286198,0.1488,3354.9,3354.8,2.98080362]
[1762498286401,0.623,3354.9,3354.8,2.98080362]
[1762498286806,0.1488,3354.9,3354.8,2.98080362]
[1762498286963,0.1488,3354.9,3354.8,3.46530362]
[1762498287170,0.623,3354.9,3354.8,2.98080362]
[1762498287570,0.1488,3354.9,3354.8,3.46530362]
[1762498288083,0.1488,3354.9,3354.8,2.98080362]
[1762498288308,0.46961028,3355.6,3354.8,4.13916966]
[1762498288508,0.46961028,3355.6,3355.4,2.98021219]
[1762498288509,0.002,3355.6,3355.4,2.98021219]
[1762498289085,0.002,3355.6,3355.5,2.98018179]
[1762498289400,0.002,3355.6,3355.5,0.4845]
[1762498289608,0.002,3355.6,3355.2,3.45922671]
[1762498289609,0.1488,3355.5,3355.2,2.98038876]
[1762498289913,0.1536,3355.5,3355.3,2.98029925]
[1762498290474,0.4536,3355.4,3355.3,2.98029925]
[1762498290814,0.1488,3355.5,3355.3,2.98029925]
[1762498291177,0.1488,3355.5,3355.4,2.9802706]
[1762498291738,0.6072,3355.5,3354.8,3.12960316]
[1762498291900,0.6072,3355.5,3355.4,2.9802706]
[1762498292685,0.002,3355.6,3355.5,2.98018179]
[1762498292928,0.002,3355.6,3355.5,3.46468179]
[1762498293127,0.002,3355.6,3355.5,3.94348179]
[1762498299248,0.002,3355.6,3355.5,4.09228179]
[1762498299454,0.002,3355.6,3355.5,5.2269189]
[1762498300353,0.002,3355.6,3355.5,9.50065525]
[1762498301037,0.002,3355.6,3355.5,5.2269189]
[1762498306458,0.002,3355.6,3355.5,4.2636189]
[1762498306629,0.002,3355.6,3355.5,4.7557189]
[1762498307024,0.002,3355.6,3355.5,5.2432189]
[1762498308963,0.002,3355.6,3355.5,4.7557189]
[1762498310161,0.002,3355.6,3355.5,5.2432189]
[1762498311361,0.002,3355.6,3355.5,4.7557189]
[1762498311943,0.002,3355.6,3355.5,5.2432189]
[1762498312470,0.002,3355.6,3355.5,4.7557189]
[1762498312674,0.002,3355.6,3355.5,5.2432189]
[1762498313349,0.002,3355.6,3355.5,9.51695525]
[1762498313547,0.002,3355.6,3355.5,5.2432189]
[1762498316470,0.002,3355.6,3355.5,9.39795706]
[1762498316667,0.002,3355.6,3355.5,9.6363381]
[1762498317440,0.002,3355.6,3355.5,9.4875381]
[1762498317750,0.002,3355.6,3355.5,9.6363381]
[1762498318371,0.002,3355.6,3355.5,9.52416929]
[1762498320490,0.002,3355.6,3355.5,13.31416929]
[1762498320663,0.002,3355.6,3355.5,9.00380175]
[1762498321186,0.002,3356.0,3355.9,3.05282657]
[1762498321363,0.002,3356.0,3355.9,3.54492657]
[1762498321560,0.4769,3356.0,3355.9,3.05282657]
[1762498321999,0.002,3356.0,3355.9,3.05282657]
[1762498322150,0.002,3356.0,3355.9,3.54492657]
[1762498322351,0.002,3356.0,3355.9,4.55609183]
[1762498322584,0.002,3356.0,3355.9,4.06399183]
[1762498322892,0.9438,3356.0,3355.9,3.05282657]
[1762498323060,0.4769,3356.0,3355.9,3.05282657]
[1762498324152,0.002,3356.0,3355.9,3.54492657]
[1762498324353,0.002,3356.0,3355.9,4.03242657]
[1762498324583,0.002,3356.0,3355.9,5.03165304]
[1762498324851,0.002,3356.0,3355.9,4.54415304]
[1762498325470,0.002,3356.0,3355.9,5.03165304]
[1762498326382,0.002,3356.0,3355.9,8.82165304]
[1762498330790,0.002,3356.0,3355.9,8.97045304]
[1762498331296,0.002,3356.0,3355.9,13.13202058]
[1762498337783,0.002,3356.3,3355.9,13.13202058]
[1762498337985,0.002,3356.3,3356.2,7.79342775]
[1762498338183,0.002,3356.8,3356.2,7.79342775]
[1762498338184,0.002,3356.8,3356.7,2.97911639]
[1762498338385,0.002,3356.8,3356.7,7.63317509]
[1762498338608,0.1488,3357.6,3356.9,2.9789389]
[1762498338609,0.1914,3357.6,3356.9,2.9789389]
[1762498338783,0.6896,3357.9,3357.1,7.79262897]
[1762498338984,0.49,3357.5,3357.1,4.86243098]
[1762498340081,0.49,3357.7,3357.1,9.48309852]
[1762498340794,0.49,3357.7,3357.1,5.32153098]
[1762498341112,0.6896,3357.9,3357.1,9.48309852]
[1762498343930,0.3608,3357.2,3357.1,4.39973098]
[1762498344225,0.8495,3357.2,3357.1,2.97876143]
[1762498347740,0.8495,3357.2,3355.9,1.07222647]
[1762498347890,0.0049,3357.0,3355.9,1.07222647]
[1762498348090,0.6814,3356.9,3356.0,0.4591]
[1762498348290,0.1914,3356.9,3356.8,2.97902764]
[1762498348690,0.5502,3356.9,3356.8,2.97902764]
[1762498348895,0.3588,3356.9,3356.8,2.97902764]
[1762498349091,0.3588,3356.9,3356.8,3.12782764]
[1762498349795,0.6814,3357.1,3357.0,2.97885016]
[1762498349997,1.0402,3357.1,3357.0,2.97885016]
[1762498350414,0.3588,3357.1,3357.0,2.97885016]
[1762498350721,0.002,3357.2,3357.1,2.97876143]
[1762498350922,0.002,3357.2,3357.1,3.44146143]
[1762498351485,0.002,3357.2,3357.1,3.90056143]
[1762498352498,0.002,3357.2,3357.1,8.06212897]
[1762498353012,0.002,3357.2,3357.1,8.46763297]
[1762498353217,0.002,3357.2,3357.1,9.96376518]
[1762498356312,1e-08,3357.6,3357.5,3.38391055]
[1762498356518,1e-08,3357.6,3357.5,7.54547809]
[1762498356719,1e-08,3357.6,3357.5,8.61607809]
[1762498358656,1e-08,3357.6,3357.5,12.40607809]
[1762498358955,1e-08,3357.6,3357.5,13.95856608]
[1762498363627,1e-08,3357.6,3357.5,13.55306208]
[1762498363962,0.46550001,3357.6,3357.5,8.31879454]
[1762498364458,1e-08,3357.6,3357.5,8.31879454]
[1762498365861,0.46480001,3357.6,3357.5,8.31879454]
[1762498367023,0.86530001,3357.6,3357.5,6.76840655]
[1762498368248,0.86530001,3357.6,3357.5,2.97840655]
[1762498369958,0.86530001,3357.6,3356.9,0.001]
[1762498370157,0.4655,3357.0,3356.9,2.9799389]
[1762498370670,0.8654,3357.0,3356.9,2.9799389]
[1762498379067,0.8654,3357.0,3356.9,6.7699389]
[1762498380970,0.4655,3357.0,3356.9,6.7699389]
[1762498381465,0.8654,3357.0,3356.9,6.7699389]
[1762498383493,0.4655,3357.0,3356.9,8.05771915]
[1762498383889,0.3999,3357.2,3356.9,8.05771915]
[1762498384089,0.3999,3357.2,3357.1,2.97876143]
[1762498384469,0.8647,3357.2,3357.1,2.97876143]
[1762498386516,0.8647,3357.2,3356.9,3.791]
[1762498386668,0.0046,3357.0,3356.9,6.7699389]
[1762498387070,0.4697,3357.0,3356.9,6.7699389]
[1762498388267,0.0046,3357.0,3356.9,6.7699389]
[1762498388472,0.0046,3357.0,3356.9,7.75981337]
[1762498388672,1e-08,3357.6,3357.5,2.97840655]
[1762498388918,1e-08,3357.6,3357.5,7.27492735]
[1762498389107,1e-08,3357.6,3357.5,2.97840655]
[1762498389480,0.40030001,3357.6,3357.5,2.97840655]
[1762498389705,0.86470001,3357.6,3357.5,4.346478]
[1762498389912,0.86470001,3357.6,3357.5,2.97840655]
[1762498390203,0.40030001,3357.6,3357.5,2.97840655]
[1762498390710,0.86470001,3357.6,3357.5,2.97840655]
[1762498391411,0.40030001,3357.6,3357.5,2.97840655]
[1762498392989,0.85060001,3357.6,3357.5,2.97840655]
[1762498393316,0.85060001,3357.6,3357.5,4.00077073]
[1762498393526,0.85060001,3357.6,3357.5,2.97840655]
[1762498394416,0.85060001,3357.6,3357.3,2.9785]
[1762498394722,0.0186,3357.4,3357.3,2.97858398]
[1762498395221,0.4689,3357.4,3357.3,2.97858398]
[1762498395992,0.0186,3357.4,3357.3,2.97858398]
[1762498396185,0.45030001,3357.6,3357.5,2.97840655]
[1762498396623,0.86520001,3357.6,3357.5,2.97840655]
[1762498397329,0.41490001,3357.6,3357.5,2.97840655]